[Event "Late-Titled-Tuesday-Blitz-October-03-2023"]
[Site "Chess.com"]
[Date "2023.10.03"]
[Round "2"]
[White "Nf3c5"]
[Black "ChristopherYoo"]
[Result "0-1"]
[WhiteElo "2593"]
[BlackElo "2993"]
[TimeControl "180+1"]
[EndTime "14:16:56 PDT"]
[Termination "ChristopherYoo won on time"]

1. d4 {[%clk 0:03:00.9]} 1... f5 {[%clk 0:02:49.9]} 2. Bf4 {[%clk 0:02:51.4]}
2... Nf6 {[%clk 0:02:47.3]} 3. Nf3 {[%clk 0:02:47]} 3... g6 {[%clk 0:02:43.9]}
4. e3 {[%clk 0:02:39.5]} 4... Bg7 {[%clk 0:02:43.9]} 5. Bc4 {[%clk 0:02:39.3]}
5... e6 {[%clk 0:02:18.8]} 6. h4 {[%clk 0:02:31.7]} 6... O-O {[%clk 0:02:12]} 7.
Nc3 {[%clk 0:02:08.6]} 7... d6 {[%clk 0:01:52.1]} 8. a3 {[%clk 0:01:58.7]} 8...
Qe7 {[%clk 0:01:50.5]} 9. Ba2 {[%clk 0:01:49.3]} 9... h6 {[%clk 0:01:17.9]} 10.
Qe2 {[%clk 0:01:31.1]} 10... Qf7 {[%clk 0:01:02.2]} 11. O-O-O {[%clk 0:00:59]}
11... b6 {[%clk 0:00:59.6]} 12. d5 {[%clk 0:00:14.8]} 12... e5 {[%clk
0:00:48.7]} 13. Bxe5 {[%clk 0:00:14.9]} 13... dxe5 {[%clk 0:00:45.7]} 14. d6
{[%clk 0:00:13.5]} 14... Be6 {[%clk 0:00:44]} 15. Nxe5 {[%clk 0:00:14.2]} 15...
Qe8 {[%clk 0:00:44.2]} 16. Bxe6+ {[%clk 0:00:11.1]} 16... Qxe6 {[%clk
0:00:43.9]} 17. Nxg6 {[%clk 0:00:12]} 17... Rc8 {[%clk 0:00:18.1]} 18. Ne7+
{[%clk 0:00:10.5]} 18... Kh7 {[%clk 0:00:15]} 19. Nxc8 {[%clk 0:00:10.7]} 19...
Qxc8 {[%clk 0:00:15.9]} 20. Qc4 {[%clk 0:00:10.7]} 20... c5 {[%clk 0:00:12.1]}
21. g4 {[%clk 0:00:09.1]} 21... fxg4 {[%clk 0:00:11.5]} 22. d7 {[%clk
0:00:07.6]} 22... Nbxd7 {[%clk 0:00:10.8]} 23. h5 {[%clk 0:00:08.2]} 23... Ne5
{[%clk 0:00:08.3]} 24. Qe2 {[%clk 0:00:05.8]} 24... Qe6 {[%clk 0:00:08.2]} 25.
e4 {[%clk 0:00:06]} 25... Rf8 {[%clk 0:00:07]} 26. Qe3 {[%clk 0:00:06.2]} 26...
Nc4 {[%clk 0:00:06.7]} 27. Qe2 {[%clk 0:00:06.1]} 27... Ne8 {[%clk 0:00:05.8]}
28. Rd5 {[%clk 0:00:04.2]} 28... Ne5 {[%clk 0:00:04]} 29. Rhd1 {[%clk
0:00:03.2]} 29... Qf6 {[%clk 0:00:03.9]} 30. Nb5 {[%clk 0:00:03.8]} 30... Nf3
{[%clk 0:00:03.4]} 31. c3 {[%clk 0:00:04]} 31... Qf4+ {[%clk 0:00:03.7]} 32. Kb1
{[%clk 0:00:04]} 32... Ne5 {[%clk 0:00:04.4]} 33. Nd6 {[%clk 0:00:03.9]} 33...
Nxd6 {[%clk 0:00:04.5]} 34. Rxd6 {[%clk 0:00:04.8]} 34... Qxf2 {[%clk
0:00:04.9]} 35. Qa6 {[%clk 0:00:04.2]} 35... g3 {[%clk 0:00:03.9]} 36. Qxa7
{[%clk 0:00:04.2]} 36... g2 {[%clk 0:00:04.4]} 37. Rg6 {[%clk 0:00:04.7]} 37...
Nxg6 {[%clk 0:00:04.3]} 38. hxg6+ {[%clk 0:00:05.2]} 38... Kxg6 {[%clk
0:00:05.2]} 39. Qxb6+ {[%clk 0:00:05.2]} 39... Kh7 {[%clk 0:00:05.8]} 0-1

[Event "Late-Titled-Tuesday-Blitz-October-03-2023"]
[Site "Chess.com"]
[Date "2023.10.03"]
[Round "2"]
[White "jk13"]
[Black "martinbitel"]
[Result "1-0"]
[WhiteElo "2662"]
[BlackElo "2243"]
[TimeControl "180+1"]
[EndTime "14:16:59 PDT"]
[Termination "jk13 won on time"]

1. e4 {[%clk 0:03:00.9]} 1... c6 {[%clk 0:03:00]} 2. Nc3 {[%clk 0:03:00.7]} 2...
d5 {[%clk 0:03:00.2]} 3. Nf3 {[%clk 0:03:01.6]} 3... dxe4 {[%clk 0:02:59.2]} 4.
Nxe4 {[%clk 0:03:01.3]} 4... Nf6 {[%clk 0:02:59.4]} 5. Qe2 {[%clk 0:03:01.2]}
5... Nxe4 {[%clk 0:02:59]} 6. Qxe4 {[%clk 0:03:02.1]} 6... Be6 {[%clk
0:02:59.4]} 7. c4 {[%clk 0:03:01.3]} 7... Nd7 {[%clk 0:02:56.8]} 8. d4 {[%clk
0:03:01.5]} 8... Nf6 {[%clk 0:02:56.9]} 9. Qc2 {[%clk 0:02:59.4]} 9... Qd7
{[%clk 0:02:50.3]} 10. Be3 {[%clk 0:02:55.7]} 10... Bf5 {[%clk 0:02:49]} 11. Qb3
{[%clk 0:02:55.4]} 11... e6 {[%clk 0:02:47.6]} 12. Be2 {[%clk 0:02:50]} 12...
Bd6 {[%clk 0:02:46.3]} 13. h3 {[%clk 0:02:50.2]} 13... h5 {[%clk 0:02:45.4]} 14.
O-O-O {[%clk 0:02:45.7]} 14... O-O-O {[%clk 0:02:40.8]} 15. Ne5 {[%clk
0:02:39.6]} 15... Qc7 {[%clk 0:02:33.5]} 16. f4 {[%clk 0:02:38.9]} 16... Kb8
{[%clk 0:02:22.6]} 17. Bd3 {[%clk 0:02:31.5]} 17... Bxd3 {[%clk 0:02:19.1]} 18.
Qxd3 {[%clk 0:02:30.1]} 18... c5 {[%clk 0:02:14.2]} 19. Qc2 {[%clk 0:02:25.3]}
19... cxd4 {[%clk 0:02:08.5]} 20. Bxd4 {[%clk 0:02:25.2]} 20... Ka8 {[%clk
0:01:46.7]} 21. Kb1 {[%clk 0:02:21.2]} 21... Rc8 {[%clk 0:01:40]} 22. Rc1 {[%clk
0:01:50.9]} 22... Rhf8 {[%clk 0:01:24.4]} 23. Rhd1 {[%clk 0:01:50.4]} 23... Bc5
{[%clk 0:01:14]} 24. Bc3 {[%clk 0:01:45.4]} 24... Rfd8 {[%clk 0:01:09.7]} 25.
Rxd8 {[%clk 0:01:31.5]} 25... Rxd8 {[%clk 0:01:08.7]} 26. Rd1 {[%clk 0:01:32.4]}
26... Rxd1+ {[%clk 0:00:36.8]} 27. Qxd1 {[%clk 0:01:33.3]} 27... a6 {[%clk
0:00:37]} 28. Qd3 {[%clk 0:01:29.9]} 28... Bd6 {[%clk 0:00:33.9]} 29. a3 {[%clk
0:01:10.5]} 29... g6 {[%clk 0:00:33]} 30. Nxf7 {[%clk 0:00:56]} 30... Bxf4
{[%clk 0:00:19]} 31. Bxf6 {[%clk 0:00:41.7]} 31... Qxf7 {[%clk 0:00:18.8]} 32.
Qd8+ {[%clk 0:00:42.2]} 32... Ka7 {[%clk 0:00:15.3]} 33. Bd4+ {[%clk 0:00:41.2]}
33... b6 {[%clk 0:00:15.6]} 34. Qxb6+ {[%clk 0:00:39.7]} 34... Ka8 {[%clk
0:00:15.7]} 35. Qxa6+ {[%clk 0:00:37]} 35... Kb8 {[%clk 0:00:16]} 36. Qb6+
{[%clk 0:00:37.3]} 36... Ka8 {[%clk 0:00:16.5]} 37. Qc6+ {[%clk 0:00:36.1]}
37... Kb8 {[%clk 0:00:16.5]} 38. Qb5+ {[%clk 0:00:35.5]} 38... Ka8 {[%clk
0:00:16]} 39. Qa5+ {[%clk 0:00:34.8]} 39... Kb8 {[%clk 0:00:15.9]} 40. Be5+
{[%clk 0:00:33.4]} 40... Bxe5 {[%clk 0:00:11.8]} 41. Qxe5+ {[%clk 0:00:34.3]}
41... Kb7 {[%clk 0:00:12.4]} 42. Ka2 {[%clk 0:00:33.1]} 42... Qf1 {[%clk
0:00:08.6]} 43. Qxe6 {[%clk 0:00:30.5]} 43... Qxg2 {[%clk 0:00:07.6]} 44. a4
{[%clk 0:00:29.9]} 44... Qf1 {[%clk 0:00:05.3]} 45. a5 {[%clk 0:00:25.4]} 45...
Ka7 {[%clk 0:00:04.4]} 46. Qb6+ {[%clk 0:00:23.5]} 46... Ka8 {[%clk 0:00:04.4]}
47. Qc6+ {[%clk 0:00:23.5]} 47... Ka7 {[%clk 0:00:04.5]} 48. a6 {[%clk
0:00:22.5]} 1-0

[Event "Late-Titled-Tuesday-Blitz-October-03-2023"]
[Site "Chess.com"]
[Date "2023.10.03"]
[Round "2"]
[White "szachmistrz2500"]
[Black "K_alena13"]
[Result "1-0"]
[WhiteElo "2432"]
[BlackElo "2131"]
[TimeControl "180+1"]
[EndTime "14:17:00 PDT"]
[Termination "szachmistrz2500 won on time"]

1. Nf3 {[%clk 0:03:00.9]} 1... d5 {[%clk 0:02:59]} 2. g3 {[%clk 0:03:01.4]} 2...
Nf6 {[%clk 0:02:58.5]} 3. Bg2 {[%clk 0:03:02.3]} 3... c6 {[%clk 0:02:57.3]} 4.
O-O {[%clk 0:03:03.2]} 4... Bf5 {[%clk 0:02:57.4]} 5. d3 {[%clk 0:03:03.5]} 5...
h6 {[%clk 0:02:57.8]} 6. Nbd2 {[%clk 0:03:03.9]} 6... e6 {[%clk 0:02:58.1]} 7.
Qe1 {[%clk 0:03:02.8]} 7... Be7 {[%clk 0:02:55.1]} 8. e4 {[%clk 0:03:01.9]} 8...
Bh7 {[%clk 0:02:55.1]} 9. Qe2 {[%clk 0:03:00.8]} 9... O-O {[%clk 0:02:54.4]} 10.
c3 {[%clk 0:03:00.3]} 10... Nbd7 {[%clk 0:02:54.5]} 11. Re1 {[%clk 0:03:00.2]}
11... Qc7 {[%clk 0:02:30.3]} 12. h3 {[%clk 0:02:51.6]} 12... e5 {[%clk
0:02:05.7]} 13. exd5 {[%clk 0:02:30.8]} 13... Nxd5 {[%clk 0:01:52.8]} 14. Nxe5
{[%clk 0:02:29.6]} 14... Nxe5 {[%clk 0:01:53.7]} 15. Qxe5 {[%clk 0:02:29.4]}
15... Qxe5 {[%clk 0:01:46.9]} 16. Rxe5 {[%clk 0:02:29.2]} 16... Bf6 {[%clk
0:01:39.2]} 17. Re1 {[%clk 0:02:28.8]} 17... Bxd3 {[%clk 0:01:37.3]} 18. Ne4
{[%clk 0:02:19.5]} 18... Rfe8 {[%clk 0:01:34]} 19. Nxf6+ {[%clk 0:02:15]} 19...
Nxf6 {[%clk 0:01:34.9]} 20. Bf4 {[%clk 0:02:13.9]} 20... Be4 {[%clk 0:01:31.7]}
21. Be3 {[%clk 0:02:06.3]} 21... Bxg2 {[%clk 0:01:30.4]} 22. Kxg2 {[%clk
0:02:07.2]} 22... a6 {[%clk 0:01:30.7]} 23. Bb6 {[%clk 0:02:04.4]} 23... Nd5
{[%clk 0:01:25.4]} 24. Bd4 {[%clk 0:02:03.9]} 24... f6 {[%clk 0:01:18.5]} 25. h4
{[%clk 0:02:00.9]} 25... h5 {[%clk 0:01:16]} 26. Kf3 {[%clk 0:01:59.4]} 26...
Kf7 {[%clk 0:01:15.8]} 27. a4 {[%clk 0:01:57.4]} 27... b5 {[%clk 0:01:06.8]} 28.
Rxe8 {[%clk 0:01:45.8]} 28... Rxe8 {[%clk 0:01:05.5]} 29. axb5 {[%clk
0:01:45.9]} 29... axb5 {[%clk 0:01:06.4]} 30. Ra6 {[%clk 0:01:41.7]} 30... Re6
{[%clk 0:01:00.3]} 31. Bc5 {[%clk 0:01:41.4]} 31... Kg6 {[%clk 0:00:55.9]} 32.
Ra7 {[%clk 0:01:39.9]} 32... Re8 {[%clk 0:00:33.1]} 33. Ra6 {[%clk 0:01:27.8]}
33... Re6 {[%clk 0:00:31.9]} 34. Ra7 {[%clk 0:01:21.4]} 34... Re8 {[%clk
0:00:31.2]} 35. Rb7 {[%clk 0:01:22]} 35... f5 {[%clk 0:00:28]} 36. Bd4 {[%clk
0:01:20.7]} 36... Re7 {[%clk 0:00:26.5]} 37. Rb8 {[%clk 0:01:17.9]} 37... Kf7
{[%clk 0:00:22.5]} 38. Rh8 {[%clk 0:01:11.6]} 38... g6 {[%clk 0:00:21.4]} 39.
Rc8 {[%clk 0:01:08.9]} 39... Rc7 {[%clk 0:00:20.3]} 40. Rb8 {[%clk 0:01:03]}
40... Ke6 {[%clk 0:00:19.2]} 41. Bc5 {[%clk 0:00:59.6]} 41... Kf6 {[%clk
0:00:18.1]} 42. Rf8+ {[%clk 0:00:58.3]} 42... Kg7 {[%clk 0:00:18.2]} 43. Re8
{[%clk 0:00:57.3]} 43... Kf7 {[%clk 0:00:17.9]} 44. Ra8 {[%clk 0:00:55.5]} 44...
Rd7 {[%clk 0:00:17.8]} 45. Ke2 {[%clk 0:00:51.6]} 45... Rc7 {[%clk 0:00:17.4]}
46. Kd3 {[%clk 0:00:50.8]} 46... Kg7 {[%clk 0:00:17.6]} 47. Kd4 {[%clk
0:00:50.4]} 47... Rd7 {[%clk 0:00:18]} 48. Ke5 {[%clk 0:00:50.4]} 48... Nc7
{[%clk 0:00:14.6]} 49. Ra7 {[%clk 0:00:46.9]} 49... Rd5+ {[%clk 0:00:13.8]} 50.
Kf4 {[%clk 0:00:43.8]} 50... Rd7 {[%clk 0:00:13.2]} 51. Kf3 {[%clk 0:00:41.1]}
51... Kf6 {[%clk 0:00:11.7]} 52. Bb6 {[%clk 0:00:41.3]} 52... Rd3+ {[%clk
0:00:10.2]} 53. Ke2 {[%clk 0:00:40]} 53... Nd5 {[%clk 0:00:09.5]} 54. Bd8+
{[%clk 0:00:37.5]} 1-0

[Event "Late-Titled-Tuesday-Blitz-October-03-2023"]
[Site "Chess.com"]
[Date "2023.10.03"]
[Round "2"]
[White "bazar-wokzal"]
[Black "Rud_Makarian"]
[Result "0-1"]
[WhiteElo "2582"]
[BlackElo "2960"]
[TimeControl "180+1"]
[EndTime "14:17:03 PDT"]
[Termination "Rud_Makarian won by resignation"]

1. e4 {[%clk 0:03:00.9]} 1... c5 {[%clk 0:03:00.5]} 2. c3 {[%clk 0:03:00.8]}
2... d5 {[%clk 0:03:00.6]} 3. exd5 {[%clk 0:03:00.9]} 3... Nf6 {[%clk
0:03:01.5]} 4. Bb5+ {[%clk 0:03:00.2]} 4... Nbd7 {[%clk 0:03:01.3]} 5. c4 {[%clk
0:02:59]} 5... a6 {[%clk 0:03:01.5]} 6. Bxd7+ {[%clk 0:02:58.9]} 6... Qxd7
{[%clk 0:03:00.8]} 7. Nf3 {[%clk 0:02:58.8]} 7... b5 {[%clk 0:03:00.4]} 8. d3
{[%clk 0:02:58.5]} 8... e6 {[%clk 0:02:55.5]} 9. dxe6 {[%clk 0:02:57.4]} 9...
fxe6 {[%clk 0:02:37]} 10. O-O {[%clk 0:02:55.3]} 10... Bd6 {[%clk 0:02:37.8]}
11. Nc3 {[%clk 0:02:53.8]} 11... Bb7 {[%clk 0:02:37.2]} 12. Bg5 {[%clk
0:02:50.2]} 12... O-O {[%clk 0:02:33.4]} 13. Bxf6 {[%clk 0:02:49]} 13... Rxf6
{[%clk 0:02:34.3]} 14. Ne4 {[%clk 0:02:46.5]} 14... Rg6 {[%clk 0:02:31.7]} 15.
Qe2 {[%clk 0:02:33]} 15... Rf8 {[%clk 0:02:29.6]} 16. g3 {[%clk 0:02:26.7]}
16... Bc7 {[%clk 0:02:04.1]} 17. Nh4 {[%clk 0:02:12.8]} 17... Rh6 {[%clk
0:01:55.5]} 18. Nxc5 {[%clk 0:02:05.3]} 18... Qc6 {[%clk 0:01:28.7]} 19. Nxb7
{[%clk 0:02:05.1]} 19... Qxb7 {[%clk 0:01:29.5]} 20. Rae1 {[%clk 0:01:54.9]}
20... Kh8 {[%clk 0:01:26.5]} 21. Qe4 {[%clk 0:01:50.3]} 21... Qb6 {[%clk
0:01:25.5]} 22. b3 {[%clk 0:01:40.7]} 22... Rhf6 {[%clk 0:01:25.5]} 23. Re2
{[%clk 0:01:39]} 23... Qd6 {[%clk 0:01:22.3]} 24. Kg2 {[%clk 0:01:31.9]} 24...
g5 {[%clk 0:01:20.7]} 25. d4 {[%clk 0:00:43]} 25... gxh4 {[%clk 0:01:17.5]} 26.
Qxh4 {[%clk 0:00:43.2]} 26... bxc4 {[%clk 0:01:15.9]} 27. bxc4 {[%clk 0:00:43]}
27... Qc6+ {[%clk 0:01:16.3]} 28. d5 {[%clk 0:00:41.8]} 28... exd5 {[%clk
0:01:12.7]} 29. cxd5 {[%clk 0:00:42.2]} 29... Qxd5+ {[%clk 0:01:12.5]} 30. Qe4
{[%clk 0:00:38.9]} 30... Qh5 {[%clk 0:00:51]} 31. Rc2 {[%clk 0:00:35.2]} 31...
Bb6 {[%clk 0:00:48.2]} 32. f4 {[%clk 0:00:27.1]} 32... Rh6 {[%clk 0:00:45.5]}
33. h4 {[%clk 0:00:22.2]} 33... Rg8 {[%clk 0:00:41.9]} 34. Rf3 {[%clk
0:00:16.6]} 34... Re8 {[%clk 0:00:27.1]} 35. Qb7 {[%clk 0:00:14]} 35... Rhe6
{[%clk 0:00:23.6]} 36. Rc8 {[%clk 0:00:11.6]} 36... Re2+ {[%clk 0:00:20.8]} 37.
Kh3 {[%clk 0:00:12]} 37... Qf5+ {[%clk 0:00:20.2]} 38. g4 {[%clk 0:00:12.4]}
38... Qxc8 {[%clk 0:00:19.4]} 39. Qxb6 {[%clk 0:00:12.5]} 39... Qe6 {[%clk
0:00:15.3]} 40. Qd4+ {[%clk 0:00:11]} 40... Kg8 {[%clk 0:00:15.1]} 41. f5 {[%clk
0:00:11.4]} 41... Qe4 {[%clk 0:00:13.8]} 42. Qxe4 {[%clk 0:00:08.4]} 42... R8xe4
{[%clk 0:00:13.3]} 43. g5 {[%clk 0:00:08.8]} 43... R4e3 {[%clk 0:00:12.3]} 0-1

[Event "Late-Titled-Tuesday-Blitz-October-03-2023"]
[Site "Chess.com"]
[Date "2023.10.03"]
[Round "2"]
[White "ArtemDyachuk"]
[Black "The_Princess_Moon"]
[Result "1-0"]
[WhiteElo "2676"]
[BlackElo "2301"]
[TimeControl "180+1"]
[EndTime "14:17:04 PDT"]
[Termination "ArtemDyachuk won on time"]

1. e4 {[%clk 0:03:00.9]} 1... c5 {[%clk 0:02:59.8]} 2. Nf3 {[%clk 0:03:00.7]}
2... a6 {[%clk 0:03:00]} 3. c4 {[%clk 0:03:00.2]} 3... Nc6 {[%clk 0:02:59.3]} 4.
d4 {[%clk 0:02:58.9]} 4... cxd4 {[%clk 0:02:59]} 5. Nxd4 {[%clk 0:02:59.8]} 5...
Nxd4 {[%clk 0:02:58.7]} 6. Qxd4 {[%clk 0:02:58.6]} 6... d6 {[%clk 0:02:59.6]} 7.
Nc3 {[%clk 0:02:58.1]} 7... Nf6 {[%clk 0:02:55.5]} 8. Be2 {[%clk 0:02:56.9]}
8... g6 {[%clk 0:02:53.4]} 9. Be3 {[%clk 0:02:54.5]} 9... Bg7 {[%clk 0:02:52.6]}
10. f3 {[%clk 0:02:50.6]} 10... O-O {[%clk 0:02:49.9]} 11. Qd2 {[%clk
0:02:48.6]} 11... Be6 {[%clk 0:02:44.5]} 12. O-O {[%clk 0:02:42.1]} 12... Qa5
{[%clk 0:02:19.4]} 13. Rac1 {[%clk 0:02:17]} 13... Rfc8 {[%clk 0:02:17.4]} 14.
b3 {[%clk 0:02:14.1]} 14... b5 {[%clk 0:02:14.7]} 15. Nd5 {[%clk 0:01:40]} 15...
Qxd2 {[%clk 0:02:13.7]} 16. Bxd2 {[%clk 0:01:40.9]} 16... Bxd5 {[%clk
0:02:12.3]} 17. cxd5 {[%clk 0:01:40]} 17... Nd7 {[%clk 0:02:08]} 18. a4 {[%clk
0:01:33.6]} 18... Nc5 {[%clk 0:02:02.2]} 19. axb5 {[%clk 0:01:14.8]} 19... Nxb3
{[%clk 0:01:47.8]} 20. Rxc8+ {[%clk 0:01:12.8]} 20... Rxc8 {[%clk 0:01:48.7]}
21. Be3 {[%clk 0:01:11.4]} 21... axb5 {[%clk 0:01:45.2]} 22. Bxb5 {[%clk
0:01:12.3]} 22... Bd4 {[%clk 0:01:39]} 23. Bf2 {[%clk 0:01:00.3]} 23... Rc5
{[%clk 0:00:59.2]} 24. Ba4 {[%clk 0:00:56.4]} 24... Bxf2+ {[%clk 0:00:56.9]} 25.
Kxf2 {[%clk 0:00:50.1]} 25... Rc3 {[%clk 0:00:44.9]} 26. Rb1 {[%clk 0:00:45.2]}
26... Nc5 {[%clk 0:00:42.1]} 27. Rb8+ {[%clk 0:00:44.8]} 27... Kg7 {[%clk
0:00:41.2]} 28. Bc6 {[%clk 0:00:39]} 28... Rc2+ {[%clk 0:00:31.4]} 29. Kg3
{[%clk 0:00:38.5]} 29... h5 {[%clk 0:00:25.9]} 30. Re8 {[%clk 0:00:32]} 30...
Kf6 {[%clk 0:00:24.7]} 31. Rf8 {[%clk 0:00:31.6]} 31... Kg7 {[%clk 0:00:20.5]}
32. Re8 {[%clk 0:00:31.8]} 32... Kf6 {[%clk 0:00:20.2]} 33. h4 {[%clk 0:00:31]}
33... Nd3 {[%clk 0:00:19]} 34. Bb5 {[%clk 0:00:20.5]} 34... Ne1 {[%clk
0:00:17.2]} 35. Bf1 {[%clk 0:00:19.3]} 35... Rb2 {[%clk 0:00:14.5]} 36. Rc8
{[%clk 0:00:17.3]} 36... Nc2 {[%clk 0:00:14.1]} 37. Kf4 {[%clk 0:00:12.6]} 37...
Nd4 {[%clk 0:00:08.5]} 38. Ke3 {[%clk 0:00:12.2]} 38... Nc2+ {[%clk 0:00:06.5]}
39. Kf4 {[%clk 0:00:09.4]} 39... Nd4 {[%clk 0:00:06.4]} 40. g3 {[%clk
0:00:08.6]} 40... Rb1 {[%clk 0:00:06.2]} 41. Bd3 {[%clk 0:00:07.2]} 41... Rb3
{[%clk 0:00:06.2]} 42. Ke3 {[%clk 0:00:06.1]} 1-0

[Event "Late-Titled-Tuesday-Blitz-October-03-2023"]
[Site "Chess.com"]
[Date "2023.10.03"]
[Round "2"]
[White "tantaan"]
[Black "crazy_but_lazy"]
[Result "0-1"]
[WhiteElo "2345"]
[BlackElo "2579"]
[TimeControl "180+1"]
[EndTime "14:17:04 PDT"]
[Termination "crazy_but_lazy won by resignation"]

1. d4 {[%clk 0:03:00.9]} 1... f5 {[%clk 0:02:54.6]} 2. c4 {[%clk 0:02:59.9]}
2... Nf6 {[%clk 0:02:53.5]} 3. Nc3 {[%clk 0:02:59.7]} 3... d6 {[%clk 0:02:53.8]}
4. Nf3 {[%clk 0:02:52.2]} 4... Nbd7 {[%clk 0:02:53.8]} 5. e3 {[%clk 0:02:52.4]}
5... g6 {[%clk 0:02:53.4]} 6. Bd3 {[%clk 0:02:52]} 6... Bg7 {[%clk 0:02:53.9]}
7. O-O {[%clk 0:02:48.9]} 7... O-O {[%clk 0:02:54.3]} 8. d5 {[%clk 0:02:43]}
8... e5 {[%clk 0:02:51.9]} 9. dxe6 {[%clk 0:02:42.4]} 9... Nc5 {[%clk
0:02:52.2]} 10. Nd4 {[%clk 0:02:27.3]} 10... Nxe6 {[%clk 0:02:51.1]} 11. b3
{[%clk 0:02:17.9]} 11... Qe7 {[%clk 0:01:55]} 12. Bb2 {[%clk 0:02:16.7]} 12...
Bd7 {[%clk 0:01:55.5]} 13. Rc1 {[%clk 0:02:12.8]} 13... Rae8 {[%clk 0:01:55.4]}
14. Re1 {[%clk 0:01:56.8]} 14... Nxd4 {[%clk 0:01:48.6]} 15. exd4 {[%clk
0:01:56.1]} 15... Qf7 {[%clk 0:01:48.9]} 16. Qd2 {[%clk 0:01:39.9]} 16... Ng4
{[%clk 0:01:38.7]} 17. h3 {[%clk 0:01:35.9]} 17... Bh6 {[%clk 0:01:38.4]} 18.
Qc2 {[%clk 0:01:24.7]} 18... Bxc1 {[%clk 0:01:32.1]} 19. Rxc1 {[%clk 0:01:20.4]}
19... Nf6 {[%clk 0:01:27.7]} 20. Ne2 {[%clk 0:01:15.9]} 20... Re7 {[%clk
0:00:52.3]} 21. d5 {[%clk 0:01:14.1]} 21... Ne4 {[%clk 0:00:33]} 22. f3 {[%clk
0:00:26.6]} 22... Nc5 {[%clk 0:00:20.7]} 23. Qc3 {[%clk 0:00:25.8]} 23... Qg7
{[%clk 0:00:21.2]} 24. Qc2 {[%clk 0:00:20.7]} 24... Qh6 {[%clk 0:00:19.3]} 25.
Qc3 {[%clk 0:00:19.8]} 25... Qe3+ {[%clk 0:00:17.7]} 26. Kh1 {[%clk 0:00:18.8]}
26... Qxd3 {[%clk 0:00:18.1]} 27. Qh8+ {[%clk 0:00:18.1]} 27... Kf7 {[%clk
0:00:18.3]} 28. Qxh7+ {[%clk 0:00:17.3]} 28... Ke8 {[%clk 0:00:18.7]} 29. Qxg6+
{[%clk 0:00:17.4]} 29... Kd8 {[%clk 0:00:18.9]} 30. Nf4 {[%clk 0:00:17.2]} 30...
Qe3 {[%clk 0:00:14.3]} 31. Qh6 {[%clk 0:00:17.4]} 31... Rfe8 {[%clk 0:00:11.4]}
32. Rf1 {[%clk 0:00:13.8]} 32... Nd3 {[%clk 0:00:10.9]} 33. Bf6 {[%clk
0:00:13.7]} 33... Qxf4 {[%clk 0:00:10]} 34. Bg5 {[%clk 0:00:11.5]} 34... Qe5
{[%clk 0:00:07.2]} 35. f4 {[%clk 0:00:10.2]} 35... Qe2 {[%clk 0:00:07.1]} 36.
Bxe7+ {[%clk 0:00:08.7]} 36... Qxe7 {[%clk 0:00:08]} 37. Rd1 {[%clk 0:00:07.3]}
37... Nc5 {[%clk 0:00:07.7]} 38. Qg6 {[%clk 0:00:05.5]} 38... Ne4 {[%clk
0:00:07.9]} 39. h4 {[%clk 0:00:04.5]} 39... Nf2+ {[%clk 0:00:07.9]} 40. Kh2
{[%clk 0:00:04.2]} 40... Qxh4+ {[%clk 0:00:08.2]} 41. Kg1 {[%clk 0:00:04.3]}
41... Nxd1 {[%clk 0:00:08.4]} 0-1

[Event "Late-Titled-Tuesday-Blitz-October-03-2023"]
[Site "Chess.com"]
[Date "2023.10.03"]
[Round "2"]
[White "NowInChess"]
[Black "Eloist"]
[Result "1-0"]
[WhiteElo "2221"]
[BlackElo "2446"]
[TimeControl "180+1"]
[EndTime "14:17:06 PDT"]
[Termination "NowInChess won on time"]

1. e4 {[%clk 0:03:00.9]} 1... e6 {[%clk 0:02:59.7]} 2. d3 {[%clk 0:02:55.4]}
2... d5 {[%clk 0:02:59.7]} 3. Nd2 {[%clk 0:02:55.3]} 3... Nf6 {[%clk 0:02:58.5]}
4. Ngf3 {[%clk 0:02:55.5]} 4... b6 {[%clk 0:02:57.1]} 5. e5 {[%clk 0:02:52.4]}
5... Ng8 {[%clk 0:02:55.9]} 6. d4 {[%clk 0:02:50.7]} 6... Ne7 {[%clk 0:02:55.7]}
7. c4 {[%clk 0:02:49]} 7... dxc4 {[%clk 0:02:43.2]} 8. Bxc4 {[%clk 0:02:49.9]}
8... Bb7 {[%clk 0:02:37.7]} 9. O-O {[%clk 0:02:49]} 9... Nf5 {[%clk 0:02:35.3]}
10. Nb3 {[%clk 0:02:40.7]} 10... Be7 {[%clk 0:02:21]} 11. Be3 {[%clk 0:02:32.2]}
11... O-O {[%clk 0:02:19.5]} 12. g4 {[%clk 0:02:30.7]} 12... Nxe3 {[%clk
0:02:14.6]} 13. fxe3 {[%clk 0:02:30.2]} 13... c5 {[%clk 0:02:03.9]} 14. Qd2
{[%clk 0:02:11.5]} 14... Nc6 {[%clk 0:01:48.1]} 15. Rad1 {[%clk 0:02:06.1]}
15... a6 {[%clk 0:01:13.2]} 16. Bd3 {[%clk 0:01:56.9]} 16... Nb4 {[%clk
0:01:10.3]} 17. Bb1 {[%clk 0:01:55.8]} 17... c4 {[%clk 0:01:07.9]} 18. Nc1
{[%clk 0:01:39.6]} 18... b5 {[%clk 0:01:01.2]} 19. a3 {[%clk 0:01:36.1]} 19...
Nd5 {[%clk 0:00:46.8]} 20. Qc2 {[%clk 0:01:34.5]} 20... g6 {[%clk 0:00:37.2]}
21. Qd2 {[%clk 0:01:29.1]} 21... Bg5 {[%clk 0:00:34.1]} 22. Rde1 {[%clk
0:00:57.1]} 22... a5 {[%clk 0:00:29.2]} 23. h3 {[%clk 0:00:51]} 23... b4 {[%clk
0:00:28.7]} 24. axb4 {[%clk 0:00:46.4]} 24... axb4 {[%clk 0:00:28.2]} 25. Nxg5
{[%clk 0:00:45.7]} 25... Qxg5 {[%clk 0:00:27.5]} 26. Be4 {[%clk 0:00:35.7]}
26... c3 {[%clk 0:00:25.2]} 27. bxc3 {[%clk 0:00:33.7]} 27... bxc3 {[%clk
0:00:26.1]} 28. Qf2 {[%clk 0:00:28.4]} 28... h5 {[%clk 0:00:25.3]} 29. Qf3
{[%clk 0:00:19.4]} 29... hxg4 {[%clk 0:00:23.7]} 30. Qxg4 {[%clk 0:00:19.5]}
30... Qxg4+ {[%clk 0:00:23]} 31. hxg4 {[%clk 0:00:20.4]} 31... Rfb8 {[%clk
0:00:22.1]} 32. Rf2 {[%clk 0:00:18.6]} 32... Bc6 {[%clk 0:00:16.9]} 33. Rh2
{[%clk 0:00:17.8]} 33... Rb2 {[%clk 0:00:16.4]} 34. Nd3 {[%clk 0:00:15.7]} 34...
Rxh2 {[%clk 0:00:15.5]} 35. Kxh2 {[%clk 0:00:16.6]} 35... c2 {[%clk 0:00:15.6]}
36. Rc1 {[%clk 0:00:15.7]} 36... Ba4 {[%clk 0:00:13.8]} 37. Bxd5 {[%clk
0:00:14.6]} 37... exd5 {[%clk 0:00:13.8]} 38. Ne1 {[%clk 0:00:15.2]} 38... Rb8
{[%clk 0:00:13.2]} 39. Nxc2 {[%clk 0:00:10.7]} 39... Rc8 {[%clk 0:00:13.2]} 40.
Ra1 {[%clk 0:00:10.5]} 40... Bxc2 {[%clk 0:00:13.1]} 41. Ra5 {[%clk 0:00:08.5]}
41... Be4 {[%clk 0:00:13.5]} 42. Kg3 {[%clk 0:00:08.8]} 42... Rc2 {[%clk
0:00:13.5]} 43. Kf4 {[%clk 0:00:08.6]} 1-0